Cogmind - Beta 17 @@@ ROGUE MODE // 2026.07.12 @ 19:07:31 Player: N.W.L. Result: Destroyed by YX-ASB(R) with Subdweller Laser Performance ------------- Evolutions (0) 0 Regions Visited (2) 400 Robots Destroyed (20) 100 Value Destroyed (563) 563 Prototype IDs (18) 360 Alien Tech Used (0) 0 Bonus (0) 0 TOTAL SCORE: 1423 Bonus ------- None Cogmind --------- Core Integrity 0/250 Matter 300/300 Energy 144/150 System Corruption 0% Temperature Cool (90) Movement Walking (120) Location -10/Subcaves Parts ------- > --- POWER (1) -------- Micro Nuclear Core (fused) > --- PROPULSION (2) --- Myomer Leg (fused) Improved Thunder Leg (fused) > --- UTILITY (2) ------ 0b10 Decoder Chip [Skirmisher] (fused) Self-contained Transmogrifier > --- WEAPON (2) ------- Advanced Beam Rifle (fused) Plasma Cannon (fused) > --- INVENTORY (5) ---- Seismic Detector Light Armor Plating Cobbler Unit Grenade Launcher Peak State ------------ > --- POWER ------------ Micro Nuclear Core > --- PROPULSION ------- Myomer Leg Improved Thunder Leg > --- UTILITY ---------- 0b10 Decoder Chip [Skirmisher] Self-contained Transmogrifier > --- WEAPON ----------- Advanced Beam Rifle Plasma Cannon > --- INVENTORY -------- Seismic Detector Light Armor Plating Cobbler Unit Grenade Launcher [Rating: 41] Favorites ----------- Power Ion Engine Engine Ion Engine Power Core Micro Nuclear Core Propulsion Light Treads Treads Light Treads Leg Advanced Myomer Leg Utility Light Armor Plating Device Self-contained Transmogrifier Storage High-capacity Storage Unit Processor 0b10 Decoder Chip [Skirmisher] Protection Light Armor Plating Weapon Medium Laser Energy Gun Medium Laser Energy Cannon Plasma Cannon Ballistic Gun Minigun Launcher Grenade Launcher Special Weapon Mining Laser Build | -11 -10 -10 ------- Run | Yrd Mat Sub Slots Evolved . | . . . Power . | . . . Propulsion . | . . . Utility . | . . . Weapon . | . . . Parts Attached 22 | 6 5 11 Power 3 | 1 . 2 Engine 3 | 1 . 2 Core . | . . . Reactor . | . . . Propulsion 3 | 2 . 1 Treads 2 | 2 . . Leg 1 | . . 1 Wheel . | . . . Hover . | . . . Flight . | . . . Utility 9 | 1 2 6 Device 2 | . . 2 Storage 2 | 1 1 . Processor . | . . . Hackware . | . . . Protection 5 | . 1 4 Artifact . | . . . Weapon 7 | 2 3 2 Energy Gun 4 | 2 1 1 Energy Cannon . | . . . Ballistic Gun 1 | . . 1 Ballistic Cannon . | . . . Launcher 1 | . 1 . Special Weapon 1 | . 1 . Impact Weapon . | . . . Slashing Weapon . | . . . Piercing Weapon . | . . . Special Melee Weapon . | . . . Unidentified Prototypes 1 | . . 1 Parts Lost 8 | . . 8 Power 1 | . . 1 Propulsion 2 | . . 2 Utility 2 | . . 2 Weapon 3 | . . 3 Highest Loss Streak 8 | . . 8 To Critical Strikes . | . . . Average Backups 6 | 1 9 4 Power . | . 1 . Propulsion . | . . . Utility 3 | . 5 2 Weapon 2 | . 2 1 Tool/Special . | . . . Unused Backups 5 | . . 5 Power 1 | . . 1 Propulsion . | . . . Utility 3 | . . 3 Weapon 1 | . . 1 Tool/Special . | . . . Average Slot Usage (%) 87 | . 98 80 Engine 9 | . 14 6 Core 2 | . . 3 Treads 12 | . 28 2 Leg 11 | . . 19 Device 9 | . . 15 Storage 5 | . 14 . Processor 1 | . . 2 Protection 9 | . 12 7 Energy Gun 15 | . 26 8 Energy Cannon 1 | . . 1 Ballistic Gun 5 | . . 8 Special Weapon 2 | . . 3 Peak Build Rating 41 | 6 8 41 Average Rating 19 | 4 7 29 On Entrance 4 | . 6 8 Avg Prop Armor Cover (%) 11 | . . 11 Naked Turns . | . . . Heaviest Build 53 | 14 53 51 Greatest Support 66 | 40 40 66 Greatest Overweight (x) 1 | . 1 1 Average Overweight (x) . | . . . Largest Inventory Capacity 20 | 8 20 20 Average Capacity 9 | 6 15 5 Most Carried 12 | 6 11 12 Average Carried 6 | 2 9 4 Final Capacity 20 | 8 20 5 Final Carried 11 | 6 11 5 Transmogrified Parts 14 | . . 14 Integrity Recovered 81 | . . 81 Class Distribution -------------------- 98% | Mutant Dominant Class ---------------- Mutant | -10/Materials Mutant | -10/Subcaves Resources | -11 -10 -10 ----------- Run | Yrd Mat Sub Matter Collected 624 | 258 72 294 Remotely . | . . . Salvage Created 777 | 123 204 450 Parts 54 | 9 13 32 Haulers Intercepted . | . . . Recyclers Shooed . | . . . Parts Field Recycled . | . . . Retrieved Matter . | . . . Parts Self-Destructed 20 | . . 20 Prevented . | . . . Parts Restored . | . . . Kills | -11 -10 -10 ------- Run | Yrd Mat Sub Combat Hostiles Destroyed 16 | . 7 9 Guns 10 | . 2 8 AOE 6 | . 5 1 Classes Destroyed 7 | 2 3 2 Tunneler 2 | 2 . . Recycler 1 | 1 . . Watcher 1 | . 1 . Swarmer 3 | . 3 . Grunt 6 | . 4 2 Artisan 1 | . . 1 Subdweller 7 | . . 7 Best Kill Streak 3 | 3 3 2 Combat Bots Only 3 | . 3 2 Max Kills in Single Turn 3 | 1 3 1 Gunslinging . | . . . Exploded 3 | . 3 1 Melee . | . . . Uniques/NPCs Destroyed . | . . . Combat | -11 -10 -10 -------- Run | Yrd Mat Sub Hostile Shots Fired 119 | . 19 100 Missed 27 | . 5 22 Hits 92 | . 14 78 Projectile 92 | . 14 78 Critical Strikes 4 | . 2 2 Damage Taken 1421 | . 242 1179 Core 265 | . 40 225 Absorbed by Shields . | . . . Core Remaining (%) 100 | 100 . . Volleys Fired 123 | 7 29 87 Largest 2 | 2 2 2 Hottest 141 | 90 100 141 Shots Fired 173 | 14 42 117 Gun 133 | 14 32 87 Cannon 4 | . . 4 Launcher 7 | . 3 4 Special 29 | . 7 22 Kinetic 26 | . . 26 Thermal 116 | 7 24 85 Explosive 7 | . 3 4 Electromagnetic 24 | 7 15 2 Robot Hit Streak 9 | 5 4 9 Robot Miss Streak 3 | 1 2 3 Penetration Max . | . . . Secondary Targets 1 | . . 1 Max Gunslinging Chain 1 | . . 1 Shots Hit Robots 82 | 9 18 55 Core Hits 43 | 4 13 26 Critical Kills . | . . . Critical Parts Destroyed . | . . . Critical Strikes 1 | . . 1 Burn 1 | . . 1 Melee Attacks . | . . . Impact . | . . . Slashing . | . . . Piercing . | . . . Sneak Attacks . | . . . Combat Hostiles . | . . . Follow-up Attacks . | . . . Damage Inflicted 1669 | 136 425 1108 Guns 1124 | 116 226 782 Cannons 76 | . . 76 Explosions 394 | 20 196 178 Melee . | . . . Ramming 3 | . 3 . Kinetic 288 | . . 288 Thermal 830 | 85 124 621 Explosive 374 | . 196 178 Electromagnetic 174 | 51 102 21 Impact . | . . . Slashing . | . . . Piercing . | . . . Highest Corruption . | . . . Average Corruption . | . . . Corruption Purged . | . . . Corruption Blocked . | . . . Overload Shots . | . . . Overflow Damage . | . . . Projectiles . | . . . Explosions . | . . . Melee . | . . . Knockbacks . | . . . Impact . | . . . Kinetic . | . . . Secondary . | . . . Self-Inflicted Damage 15 | . 15 . Shots 1 | . 1 . Rammed 1 | . 1 . Targets Rammed 1 | . 1 . Kicked . | . . . Crushed . | . . . Highest Temperature 343 | 210 343 84 Average Temperature 87 | 105 111 20 Received Heat Transfer 435 | . 141 294 Effects 1 | . 1 . Energy Bleed 1 | . 1 . Siege Activations . | . . . Martial Activations . | . . . Shielding Activations . | . . . Robots Disrupted . | . . . Combat Hostiles . | . . . Robots Corrupted . | . . . Combat Hostiles . | . . . Parts Fried 2 | . 2 . Impact Corruptions . | . . . Robots Melted . | . . . Combat Hostiles . | . . . Parts Melted . | . . . Heat Transferred 1909 | 235 346 1328 Parts Sabotaged . | . . . Parts Stolen . | . . . Parts Stripped . | . . . Power Chain Reactions 1 | 1 . . Alert | -11 -10 -10 ------- Run | Yrd Mat Sub Maximum Alert Level . | . . . Low Security (%) 100 | 100 100 . Level 1 . | . . . Level 2 . | . . . Level 3 . | . . . Level 4 . | . . . Level 5 . | . . . High Security . | . . . Max Security . | . . . Peak Influence 106 | 15 106 . Initial . | . . . Average 22 | 2 25 . Influence Increases 346 | 15 216 115 Destroy 0b10 Robot/C 180 | . 140 40 Destroy 0b10 Robot/NC 20 | 15 5 . Destroy Leader 32 | . 32 . Destroy Structure 24 | . 24 . Lose Combat Pursuer 90 | . 15 75 Influence Decreases 346 | 15 216 115 Time Decay 266 | 15 216 35 Lost Part 80 | . . 80 Squads Dispatched 1 | . 1 . Investigation . | . . . Extermination . | . . . Reinforcement 1 | . 1 . Assault . | . . . Garrison . | . . . Intercept . | . . . Searches Triggered . | . . . Construction Impeded . | . . . Haulers Reinforced . | . . . Active Scanning Responses . | . . . Cargo Convoy Interrupts . | . . . Stealth | -11 -10 -10 --------- Run | Yrd Mat Sub Distress Signals 1 | . 1 . Communications Jammed . | . . . Distress Signals . | . . . Times Spotted 26 | . 12 14 Peak Tracking Total 6 | . 3 6 Tactical Retreats 4 | . 1 3 Traps | -11 -10 -10 ------- Run | Yrd Mat Sub Traps Triggered 1 | . 1 . Indirectly . | . . . Trap Hack Attempts . | . . . Triggered . | . . . Disarmed . | . . . Reprogrammed . | . . . Reused 1 | . . 1 Traps Extracted . | . . . Installed 1 | . . 1 Triggered 1 | . . 1 Most Traps Carried 1 | . . 1 Machines | -11 -10 -10 ---------- Run | Yrd Mat Sub Machines Disabled 1 | . . 1 Max in Single Turn 1 | . . 1 Machines Repaired . | . . . Machines Dismantled . | . . . Machines Sabotaged . | . . . Overloaded Fab Kills . | . . . Hacking | -11 -10 -10 --------- Run | Yrd Mat Sub Machines Accessed 1 | . . 1 Terminals . | . . . Fabricators . | . . . Repair Stations . | . . . Recycling Units . | . . . Scanalyzers . | . . . Garrison Access . | . . . Total Hacks 1 | . . 1 Successful 1 | . . 1 Failed . | . . . Catastrophic . | . . . Database Lockouts . | . . . Manual . | . . . Terminals . | . . . Fabricators . | . . . Repair Stations . | . . . Recycling Units . | . . . Scanalyzers . | . . . Garrison Access . | . . . Terminal Hacks 1 | . . 1 Proto ID Catalog 1 | . . 1 Fabricator Hacks . | . . . Repair Station Hacks . | . . . Recycling Unit Hacks . | . . . Scanalyzer . | . . . Garrison Access Hacks . | . . . Unauthorized Hacks . | . . . Terminals . | . . . Fabricators . | . . . Repair Stations . | . . . Recycling Units . | . . . Scanalyzers . | . . . Garrison Access . | . . . Data Cores Recovered . | . . . Used . | . . . Hacking Detections . | . . . Full Trace Events . | . . . Feedback Events . | . . . Feedback Blocked . | . . . Robot Schematics Acquired . | . . . Robots Built . | . . . Authchips . | . . . Time . | . . . Total Robot Build Rating . | . . . Part Schematics Acquired . | . . . Parts Built . | . . . Authchips . | . . . Time . | . . . Total Part Build Rating . | . . . Part Studies Acquired . | . . . Parts Repaired . | . . . Time . | . . . Parts Recycled . | . . . Recycled Matter . | . . . Retrieved Matter . | . . . Retrieved Components . | . . . Parts Scanalyzed . | . . . Part Schematics Acquired . | . . . Parts Damaged . | . . . Bothacking | -11 -10 -10 ------------ Run | Yrd Mat Sub Used RIF Installer . | . . . Robots Hacked . | . . . Non-combat . | . . . Combat . | . . . Robot Hacks Applied . | . . . Relay Couplers Released . | . . . Fabnet Peak Effective % . | . . . Robots Rewired . | . . . Allies Hacked . | . . . Hacks Repelled . | . . . Allies | -11 -10 -10 -------- Run | Yrd Mat Sub Total Allies . | . . . Largest Group . | . . . Highest-Rated Group . | . . . Highest-Rated Ally . | . . . Total Orders . | . . . Ally Attacks . | . . . Total Damage . | . . . Kills . | . . . Allies Corrupted . | . . . Allies Melted . | . . . Intel | -11 -10 -10 ------- Run | Yrd Mat Sub Active Infowar (turns) 603 | . . 603 Seismic 408 | . . 408 Decoding 195 | . . 195 Robot Analysis Total . | . . . Derelict Logs Recovered 1 | . . 1 Drone Launches . | . . . Drone Recoveries . | . . . Exploration | -11 -10 -10 ------------- Run | Yrd Mat Sub Turns Passed 2186 | 119 857 1210 Spaces Moved 1170 | 55 252 863 Core 258 | 4 . 254 Treads 316 | 51 252 13 Legs 596 | . . 596 Wheels . | . . . Hover . | . . . Flight . | . . . Fastest Speed 50 | 50 160 50 Average Speed 118 | 152 191 95 Slowest Speed 240 | 160 240 240 Overloaded Moves . | . . . Propulsion Burnouts . | . . . Robots Hopped . | . . . Potential Cave-ins . | . . . Cave-ins Triggered . | . . . Exploration Rate (%) 30 | 5 35 51 Regions Visited 2 Branch Regions 1 Pre-discovered Areas . | . . . Known Exits Taken . | . . . Unknown Exits Taken 2 | 1 1 . Scrap Searched 4 | . . 4 Spaces Dug . | . . . Terrain Destroyed 42 | 2 28 12 Melee . | . . . Projectile 1 | . 1 . AOE 41 | 2 27 12 Terrain Rammed . | . . . Walls Destroyed . | . . . Machines Disabled . | . . . Actions | -11 -10 -10 --------- Run | Yrd Mat Sub Total 1740 | 74 570 1096 Wait 389 | . 278 111 Move 1168 | 54 251 863 Hop . | . . . Pick Up 18 | 7 6 5 Fast Attach 12 | 5 . 7 Attach 8 | 1 1 6 Detach 5 | . . 5 Swap 9 | . 4 5 Drop 6 | . . 6 Fire 123 | 7 29 87 Melee . | . . . Ram . | . . . Kick . | . . . Crush 1 | . 1 . Escape Stasis . | . . . Rewire . | . . . Trap 1 | . . 1 Miscellaneous . | . . . Route ------- -11/Scrapyard -10/Materials (discovered 4 exits: [*Mat] / [*Min x2] / *Sub) -10/Subcaves (discovered 2 exits: [*Mat x2]) History --------- Turn | Location | Event 33 | -11/Scrapyard | Discovered new exit (range 15) 120 | -11/Scrapyard | Entered Materials 189 | -10/Materials | Discovered new exit (range 9) 301 | -10/Materials | Build established: Mutant 353 | -10/Materials | Discovered new exit (range 8) 495 | -10/Materials | Discovered new exit (range 15) 975 | -10/Materials | Discovered new exit (range 2) 977 | -10/Materials | Entered Subcaves 977 | -10/Subcaves | Discovered new exit (range 13) 1026 | -10/Subcaves | Ambushed by angry Subdweller bent on revenge 1037 | -10/Subcaves | Core integrity fell below 50% 1073 | -10/Subcaves | Core integrity fell below 20% 1107 | -10/Subcaves | Lost 8 parts (1p2n2u3w) 1120 | -10/Subcaves | A swath of the cavern ceiling suddenly collapsed 1182 | -10/Subcaves | Discovered new exit (range 10) 1198 | -10/Subcaves | Visited 4L-MR0's lab 1201 | -10/Subcaves | Found Prototype Device 1201 | -10/Subcaves | Identified Sfc. Transmogrifier 1211 | -10/Subcaves | Found Cargo Legs 1213 | -10/Subcaves | Attached Cargo Legs, gained temporary slots: Utility x2 1305 | -10/Subcaves | Shifting Twisted Machinery released Shrapnel Trap 1506 | -10/Subcaves | Ambushed by Subdwellers from Twisted Machinery 1664 | -10/Subcaves | Ambushed by angry Subdweller bent on revenge 1982 | -10/Subcaves | A swath of the cavern ceiling suddenly collapsed 2187 | -10/Subcaves | Destroyed by YX-ASB(R) with Subdweller Laser Last Messages --------------- 01761_ Acquired Mak. Light Armor Plating. 01763_ Acquired 10 matter. 01784_ Dropped Sub. Laser. 01784_ Dropped Mining Laser. 01786_ Acquired Cobbler Unit. 01805_ Sfc. Transmogrifier converts Adv. Myomer Leg into Myomer Leg. 01851_ Sfc. Transmogrifier converts Lgt. Deuterium Engine into Mic. Nuclear Core. 01854_ B3-SG7(R) destroyed. 01859_ F8-X6T(R) destroyed. 01862_ Acquired 12 matter. 01870_ Subatomizers dissect the Sub. Optics. 01946_ Sfc. Transmogrifier converts Exp. Flexi-carbon Leg into Imp. Thunder Leg. A swath of the cavern ceiling suddenly collapses. 01992_ Sfc. Transmogrifier converts Mak. Light Armor Plating into 0b10 Decoder Chip [Skirmisher]. 02001_ Z5-RC1(R) destroyed. 02012_ Sfc. Transmogrifier converts Minigun into Plasma Cannon. 02121_ Acquired 8 matter. Map ----- +----------------------------------------------------+ | ?????????????????????????????????????????????????? | | ?????????????????????????????????????????????????? | | ???????????????? ???? ?????????????????????????? | | ???????????????? ??? ?????????????????????????? | | ????????????????# ??? ??????????????????????????? | | ????????????????# ??# ??????????????????????????? | | ????????????????# ?? ??????????????????????????? | | ???????????????? ## ??????????????????????????? | | ????????????????? ??????????????????????????? | | ????????????????? #?"#???????????????? #?????? | | ?????????????????? ## ???????????????? #????? | | ?????????????????? """????????????? ??# #???? | | ??????????????????# ""?????????????? #?# #??? | | ??????????????????# ???????????????? ##?? | | ??????????????????? ##??????????????? ### | | ???????????????????# #??????????????## # | | ??????????##???????# #??????????????? | | ?????????## ##?????# #??######???????? ? | | ?????????# ####### ##?? ##??????? ? | | ?????????# ## ##?? #???????? ?? | | ?????????# #### #?? #????###?# #?? | | ?????????# #?# ##?? #???### ## ##? | | ?????????## ### #### #????# ## | | ??????????## ## ## #??????# | | ??????????## ### R #??????# | | ??????????# ##?# @ ######??# | | ??????????# ##??### ##;;;;;#??## | | ??????????# ##????## ;;#"#""";##??## ## | | ?????????## ##????# ;;###"#""#"#???## ###? | | ?????????# #########;""#"#"##"#????## ##?? | | ?????????# ####"""""""#?????## ##? | | ?????????## #??##""#""##??#### ## | | ??????????# #### #?#""##""#??## # | | ??????????# #??# ##?#""#"""#??# #### | | ?????????## ### ##??#####"#### ##??## | | ?????????# ######???????#"#"#########???## | | ?????????# ###???###??##"""#"## #????## | | ?????????#### ##??# ##??####"#"" #?????## | | ????????????# #?## #####""#"# ##?????# | | ???????????## ### ##"#"## # ####### | | ?????????### ## &#&#"###### | | ????????## ### &%####????## # | | ??????### ### !&#????????# ### | | ####### #????????# #### ## | | ## ##### #????###??# | | #### ##???# #????# ### | | ######??########????## # #????# # | | ##????????????????????###### #????# ## | | #???????????????????????????? ##????## ##? | | # #???????????????????????????? #??????## ### | +----------------------------------------------------+ Best States ------------- Heat Dissipation 25 Energy Generation 15 Energy Capacity 265 Matter Stores 300 Matter Capacity 300 Sight Range 16 Terrain Scan Density 10 Additional Mass Support 6 Armor Coverage 300 Evasion (%) 70 Recoil Reduction 2 Item Schematics ----------------- None Robot Schematics ------------------ None Fabricated ------------ Nothing Repaired ---------- Nothing Studied --------- None Alien Tech Used ----------------- None Achievements -------------- None Challenges ------------ None Game ------ Seed SkeletonUltimateExtractor Manual? 0 Play Time 00:15:32 Cumulative 652.7 hours Start 2026.07.08 @ 18:45:32 End 2026.07.12 @ 19:07:31 Sessions 5 Manual Loads 0 Difficulty Rogue Special Mode None Game No. 256 Rogue 256 Adventurer 0 Explorer 0 Win Type - Total 25 Types 10/3/7/1/0/0/1/2/0/1 Lore% 93 Gallery% 84 Achievement% 71 Wizard Run 0 Options --------- Layout 0 ASCII 0 Keyboard 1 Movement Numpad Keybinds 0 Fullscreen 2 Font 18/SmallcapsGlow Map View 76x50 Zoom Use 0% Tactical HUD 1 Map Filters NONE Filters NONE Steam 1 RUN: 5b07671b-78bf-4008-8b69-24935ab5443b